Cogmind - Beta 16 @@@ ROGUE MODE // 2025.11.10 @ 18:11:07 Player: Lain Result: Self-destructed Performance ------------- Evolutions (2) 1000 Regions Visited (3) 600 Robots Destroyed (9) 45 Value Destroyed (205) 205 Prototype IDs (0) 0 Alien Tech Used (0) 0 Bonus (0) 0 TOTAL SCORE: 1850 Bonus ------- None Cogmind --------- Core Integrity 208/550 Matter 115/300 Energy 99/100 System Corruption 0% Temperature Cool (0) Movement Core (50) Location -8/Materials Parts ------- > --- POWER (1) -------- (None) > --- PROPULSION (4) --- (None) > --- UTILITY (3) ------ (None) > --- WEAPON (3) ------- (None) > --- INVENTORY (5) ---- Ion Engine Weight Redist. System Shield Generator Medium Laser Light EM Pulse Cannon Peak State ------------ > --- POWER ------------ Light Ion Engine > --- PROPULSION ------- VTOL Module VTOL Module VTOL Module VTOL Module > --- UTILITY ---------- (None) > --- WEAPON ----------- Shotgun > --- INVENTORY -------- Ion Engine Shotgun [Rating: 11] Favorites ----------- Power Ion Engine Engine Ion Engine Propulsion VTOL Module Leg Aluminum Leg Wheel Armored Wheel Flight Unit VTOL Module Utility Small Storage Unit Device Sensor Array Storage Small Storage Unit Weapon Shotgun Energy Gun Small Laser Ballistic Gun Shotgun Launcher Grenade Launcher Build | -11 -10 -9 -8 ------- Run | Yrd Mat Mat Mat Slots Evolved 4 | . . 2 2 Power . | . . . . Propulsion 2 | . . 2 . Utility 1 | . . . 1 Weapon 1 | . . . 1 Parts Attached 19 | 3 13 3 . Power 2 | 1 1 . . Engine 2 | 1 1 . . Core . | . . . . Reactor . | . . . . Propulsion 9 | 2 4 3 . Treads . | . . . . Leg 2 | 2 . . . Wheel 1 | . . 1 . Hover . | . . . . Flight 6 | . 4 2 . Utility 2 | . 2 . . Device 1 | . 1 . . Storage 1 | . 1 . . Processor . | . . . . Hackware . | . . . . Protection . | . . . . Artifact . | . . . . Weapon 6 | . 6 . . Energy Gun 2 | . 2 . . Energy Cannon . | . . . . Ballistic Gun 3 | . 3 . . Ballistic Cannon . | . . . . Launcher 1 | . 1 . . Special Weapon . | . . . . Impact Weapon . | . . . . Slashing Weapon . | . . . . Piercing Weapon . | . . . . Special Melee Weapon . | . . . . Unidentified Prototypes . | . . . . Parts Lost 9 | . 1 5 3 Power 1 | . . 1 . Propulsion 5 | . . 3 2 Utility 1 | . 1 . . Weapon 2 | . . 1 1 Highest Loss Streak 5 | . 1 5 3 To Critical Strikes . | . . . . Average Backups 3 | 2 3 3 5 Power 1 | . 1 1 1 Propulsion . | . . . . Utility . | . . . 2 Weapon 1 | 1 1 1 2 Tool/Special . | . . . . Unused Backups 6 | 1 . . 5 Power 1 | . . . 1 Propulsion 1 | 1 . . . Utility 2 | . . . 2 Weapon 2 | . . . 2 Tool/Special . | . . . . Average Slot Usage (%) 55 | . 82 48 23 Engine 7 | . 14 7 . Leg 9 | . 20 . . Wheel 3 | . . 3 8 Flight 11 | . 7 25 7 Device 2 | . 5 . . Storage 4 | . 10 . . Energy Gun 4 | . 10 . . Ballistic Gun 9 | . 8 12 7 Launcher 2 | . 4 . . Peak Build Rating 11 | 3 9 11 6 Average Rating 6 | 2 6 8 5 On Entrance 4 | . 3 7 6 Avg Prop Armor Cover (%) 6 | . . 7 6 Naked Turns 29 | . . . 29 Heaviest Build 16 | 5 16 9 3 Greatest Support 20 | 20 20 16 12 Greatest Overweight (x) 1 | . 1 1 . Average Overweight (x) . | . . . . Largest Inventory Capacity 8 | 5 8 5 5 Average Capacity 5 | 5 7 5 5 Most Carried 7 | 5 7 5 5 Average Carried 3 | 2 3 3 5 Final Capacity 5 | 5 5 5 5 Final Carried 5 | 5 4 5 5 Class Distribution -------------------- 77% | Mutant 22% | Sprinter Dominant Class ---------------- Mutant | -10/Materials Sprinter | -9/Materials Mutant | -8/Materials Resources | -11 -10 -9 -8 ----------- Run | Yrd Mat Mat Mat Matter Collected 182 | 40 104 38 . Remotely . | . . . . Salvage Created 236 | . 150 86 . Parts 21 | . 13 8 . Haulers Intercepted . | . . . . Recyclers Shooed . | . . . . Parts Field Recycled . | . . . . Retrieved Matter . | . . . . Parts Self-Destructed . | . . . . Prevented . | . . . . Parts Restored . | . . . . Kills | -11 -10 -9 -8 ------- Run | Yrd Mat Mat Mat Combat Hostiles Destroyed 8 | . 5 3 . Guns 8 | . 5 3 . Classes Destroyed 3 | . 3 . . Watcher 1 | . 1 . . Swarmer 4 | . 3 1 . Grunt 4 | . 2 2 . Best Kill Streak 3 | . 2 3 . Combat Bots Only 3 | . 2 3 . Max Kills in Single Turn 1 | . 1 1 . Gunslinging . | . . . . Exploded . | . . . . Melee . | . . . . Uniques/NPCs Destroyed . | . . . . Combat | -11 -10 -9 -8 -------- Run | Yrd Mat Mat Mat Hostile Shots Fired 168 | . 41 78 49 Missed 64 | . 15 35 14 Hits 104 | . 26 43 35 Projectile 104 | . 26 43 35 Critical Strikes 3 | . . 1 2 Damage Taken 1239 | . 236 482 521 Core 501 | . 26 133 342 Absorbed by Shields . | . . . . Core Remaining (%) 85 | 100 89 66 . Volleys Fired 40 | . 27 13 . Largest 2 | . 2 1 . Hottest 80 | . 80 23 . Shots Fired 53 | . 40 13 . Gun 52 | . 39 13 . Cannon . | . . . . Launcher 1 | . 1 . . Special . | . . . . Kinetic 30 | . 17 13 . Thermal 22 | . 22 . . Explosive 1 | . 1 . . Electromagnetic . | . . . . Robot Hit Streak 9 | . 9 4 . Robot Miss Streak 6 | . 6 4 . Penetration Max . | . . . . Secondary Targets . | . . . . Shots Hit Robots 25 | . 17 8 . Core Hits 19 | . 8 6 5 Critical Kills . | . . . . Critical Parts Destroyed . | . . . . Critical Strikes . | . . . . Melee Attacks . | . . . . Impact . | . . . . Slashing . | . . . . Piercing . | . . . . Sneak Attacks . | . . . . Combat Hostiles . | . . . . Follow-up Attacks . | . . . . Damage Inflicted 421 | . 213 124 84 Guns 312 | . 190 122 . Cannons . | . . . . Explosions 23 | . 23 . . Melee . | . . . . Ramming 86 | . . 2 84 Kinetic 179 | . 57 122 . Thermal 133 | . 133 . . Explosive 23 | . 23 . . Electromagnetic . | . . . . Impact . | . . . . Slashing . | . . . . Piercing . | . . . . Highest Corruption . | . . . . Average Corruption . | . . . . Corruption Purged . | . . . . Corruption Blocked . | . . . . Overload Shots . | . . . . Overflow Damage . | . . . . Projectiles . | . . . . Explosions . | . . . . Melee . | . . . . Knockbacks . | . . . . Impact . | . . . . Kinetic . | . . . . Secondary . | . . . . Self-Inflicted Damage 36 | . . 1 35 Shots . | . . . . Rammed 31 | . . 1 30 Targets Rammed 31 | . . 1 30 Kicked . | . . . . Crushed . | . . . . Highest Temperature 168 | . 168 10 . Average Temperature 80 | . 81 10 . Received Heat Transfer 441 | . 42 156 243 Siege Activations . | . . . . Martial Activations . | . . . . Shielding Activations . | . . . . Robots Disrupted . | . . . . Combat Hostiles . | . . . . Robots Corrupted . | . . . . Combat Hostiles . | . . . . Parts Fried . | . . . . Impact Corruptions . | . . . . Robots Melted . | . . . . Combat Hostiles . | . . . . Parts Melted 2 | . 2 . . Heat Transferred 300 | . 300 . . Parts Sabotaged . | . . . . Parts Stolen . | . . . . Parts Stripped . | . . . . Power Chain Reactions . | . . . . Alert | -11 -10 -9 -8 ------- Run | Yrd Mat Mat Mat Maximum Alert Level . | . . . . Low Security (%) 100 | 100 100 100 100 Level 1 . | . . . . Level 2 . | . . . . Level 3 . | . . . . Level 4 . | . . . . Level 5 . | . . . . High Security . | . . . . Max Security . | . . . . Peak Influence 122 | . 50 122 70 Initial 42 | . . 12 42 Average 24 | . 15 44 27 Influence Increases 465 | . 145 230 90 Destroy 0b10 Robot/C 160 | . 100 60 . Destroy 0b10 Robot/NC 5 | . 5 . . Destroy Leader 52 | . 32 20 . Destroy Structure 8 | . 8 . . Partial Spotted 15 | . . 15 . Lose Combat Pursuer 225 | . . 135 90 Influence Decreases 465 | . 115 158 192 Entered New Map 78 | . . 18 60 Time Decay 297 | . 105 90 102 Lost Part 90 | . 10 50 30 Squads Dispatched 8 | . 2 4 2 Investigation 3 | . 1 1 1 Extermination . | . . . . Reinforcement 5 | . 1 3 1 Assault . | . . . . Garrison . | . . . . Intercept . | . . . . Searches Triggered . | . . . . Construction Impeded . | . . . . Haulers Reinforced . | . . . . Active Scanning Responses . | . . . . Cargo Convoy Interrupts . | . . . . Stealth | -11 -10 -9 -8 --------- Run | Yrd Mat Mat Mat Distress Signals 6 | . 1 3 2 Communications Jammed . | . . . . Distress Signals . | . . . . Times Spotted 58 | . 11 30 17 Peak Tracking Total 15 | . 3 15 11 Tactical Retreats 5 | . . 3 2 Traps | -11 -10 -9 -8 ------- Run | Yrd Mat Mat Mat Traps Triggered 2 | . . 1 1 Indirectly . | . . . . Trap Hack Attempts . | . . . . Triggered . | . . . . Disarmed 3 | . 3 . . Reprogrammed 3 | . . 3 . Reused . | . . . . Traps Extracted . | . . . . Installed . | . . . . Triggered . | . . . . Machines | -11 -10 -9 -8 ---------- Run | Yrd Mat Mat Mat Machines Disabled . | . . . . Max in Single Turn . | . . . . Machines Repaired . | . . . . Machines Dismantled . | . . . . Machines Sabotaged . | . . . . Overloaded Fab Kills . | . . . . Hacking | -11 -10 -9 -8 --------- Run | Yrd Mat Mat Mat Machines Accessed 4 | . 2 2 . Terminals 3 | . 2 1 . Fabricators . | . . . . Repair Stations . | . . . . Recycling Units 1 | . . 1 . Scanalyzers . | . . . . Garrison Access . | . . . . Total Hacks 12 | . 6 6 . Successful 5 | . 1 4 . Failed 7 | . 5 2 . Catastrophic . | . . . . Database Lockouts . | . . . . Manual 1 | . . . 1 Terminals 9 | . 6 3 . Fabricators . | . . . . Repair Stations . | . . . . Recycling Units 3 | . . 3 . Scanalyzers . | . . . . Garrison Access . | . . . . Terminal Hacks 3 | . 1 2 . Disarm Traps 1 | . 1 . . Reprogram Traps 1 | . . 1 . Transport Status 1 | . . 1 . Fabricator Hacks . | . . . . Repair Station Hacks . | . . . . Recycling Unit Hacks 2 | . . 2 . Process 2 | . . 2 . Scanalyzer . | . . . . Garrison Access Hacks . | . . . . Unauthorized Hacks . | . . . . Terminals . | . . . . Fabricators . | . . . . Repair Stations . | . . . . Recycling Units . | . . . . Scanalyzers . | . . . . Garrison Access . | . . . . Data Cores Recovered . | . . . . Used . | . . . . Hacking Detections 4 | . 2 2 . Full Trace Events 2 | . 1 1 . Feedback Events . | . . . . Feedback Blocked . | . . . . Robot Schematics Acquired . | . . . . Robots Built . | . . . . Authchips . | . . . . Time . | . . . . Total Robot Build Rating . | . . . . Part Schematics Acquired . | . . . . Parts Built . | . . . . Authchips . | . . . . Time . | . . . . Total Part Build Rating . | . . . . Part Studies Acquired . | . . . . Parts Repaired . | . . . . Time . | . . . . Parts Recycled . | . . . . Recycled Matter . | . . . . Retrieved Matter . | . . . . Retrieved Components . | . . . . Parts Scanalyzed . | . . . . Part Schematics Acquired . | . . . . Parts Damaged . | . . . . Bothacking | -11 -10 -9 -8 ------------ Run | Yrd Mat Mat Mat Used RIF Installer . | . . . . Robots Hacked . | . . . . Non-combat . | . . . . Combat . | . . . . Robot Hacks Applied . | . . . . Relay Couplers Released . | . . . . Fabnet Peak Effective % . | . . . . Robots Rewired . | . . . . Allies Hacked . | . . . . Hacks Repelled . | . . . . Allies | -11 -10 -9 -8 -------- Run | Yrd Mat Mat Mat Total Allies . | . . . . Largest Group . | . . . . Highest-Rated Group . | . . . . Highest-Rated Ally . | . . . . Total Orders . | . . . . Ally Attacks . | . . . . Total Damage . | . . . . Kills . | . . . . Allies Corrupted . | . . . . Allies Melted . | . . . . Intel | -11 -10 -9 -8 ------- Run | Yrd Mat Mat Mat Active Infowar (turns) 144 | . 144 . . Sensors 144 | . 144 . . Robot Analysis Total . | . . . . Derelict Logs Recovered . | . . . . Drone Launches . | . . . . Drone Recoveries . | . . . . Exploration | -11 -10 -9 -8 ------------- Run | Yrd Mat Mat Mat Turns Passed 848 | 70 339 190 249 Spaces Moved 942 | 53 326 310 253 Core 31 | 8 . . 23 Treads . | . . . . Legs 190 | 45 145 . . Wheels 305 | . . 75 230 Hover . | . . . . Flight 416 | . 181 235 . Fastest Speed 26 | 50 32 26 50 Average Speed 71 | 109 72 49 86 Slowest Speed 120 | 120 120 115 90 Overloaded Moves . | . . . . Propulsion Burnouts . | . . . . Robots Hopped 18 | . 1 17 . Potential Cave-ins . | . . . . Cave-ins Triggered . | . . . . Exploration Rate (%) 25 | 3 34 29 34 Regions Visited 3 Branch Regions . Pre-discovered Areas . | . . . . Known Exits Taken . | . . . . Unknown Exits Taken 3 | 1 1 1 . Scrap Searched . | . . . . Spaces Dug . | . . . . Terrain Destroyed 8 | . 8 . . Melee . | . . . . Projectile . | . . . . AOE 8 | . 8 . . Terrain Rammed . | . . . . Walls Destroyed . | . . . . Machines Disabled . | . . . . Actions | -11 -10 -9 -8 --------- Run | Yrd Mat Mat Mat Total 1050 | 65 388 314 283 Wait . | . . . . Move 909 | 52 323 281 253 Hop 12 | . 1 11 . Pick Up 24 | 9 11 4 . Fast Attach 1 | . . 1 . Attach 13 | 3 7 3 . Detach 3 | . 3 . . Swap 6 | . 6 . . Drop 11 | 1 10 . . Fire 40 | . 27 13 . Melee . | . . . . Ram 31 | . . 1 30 Kick . | . . . . Crush . | . . . . Escape Stasis . | . . . . Rewire . | . . . . Trap . | . . . . Miscellaneous . | . . . . Route ------- -11/Scrapyard -10/Materials (discovered 2 exits: *Mat / [*Min]) -9/Materials (discovered 2 exits: *Mat / [*Sto]) -8/Materials History --------- Turn | Location | Event 2 | -11/Scrapyard | Discovered new exit (range 16) 71 | -11/Scrapyard | Entered Materials 300 | -10/Materials | Build established: Mutant 366 | -10/Materials | Discovered new exit (range 13) 408 | -10/Materials | Discovered new exit (range 4) 410 | -10/Materials | Entered another Materials area 410 | -9/Materials | Evolved 2 slots: Propulsion x2 561 | -9/Materials | Lost 5 parts (1p3n1w) 563 | -9/Materials | Discovered new exit (range 9) 589 | -9/Materials | Discovered new exit (range 13) 600 | -9/Materials | Entered another Materials area 600 | -8/Materials | Evolved 2 slots: Utility x1, Weapon x1 833 | -8/Materials | Core integrity fell below 50% 849 | -8/Materials | Self-destructed Last Messages --------------- 00808_ Slammed into T-07 Excavator. 00812_ Slammed into A-02 Transporter. 00813_ Slammed into G-50 Soldier. 00813_ VTOL Module destroyed. 00816_ Slammed into S-10 Pest. 00820_ Arm. Wheel destroyed. 00821_ Slammed into S-10 Pest. 00822_ Slammed into G-50 Soldier. 00823_ Slammed into G-47 Trooper. 00826_ Slammed into S-10 Pest. 00828_ S-10 Pest destroyed. 00829_ Slammed into S-10 Pest. 00830_ Slammed into G-47 Trooper. 00831_ Slammed into S-10 Pest. 00832_ Slammed into G-50 Soldier. 00832_ Destabilizing: Core damaged (-5). 00833_ Slammed into G-47 Trooper. 00835_ Slammed into K-01 Serf. 00849_ Connecting with Terminal... 00849_ Current location identified: Materials Map ----- +----------------------------------------------------+ | | | | | | | | | | | | | | | | | | | | | | | | | | | | | | | | | | | | | | | | | ??????????????????????????????????????? | | ???????????????????????#########??????? | | ####???????????????????# #??????? | | #???????????????##### / ! [#??????? | | "=#???????????##### # #??????? | | *%#???????????# + @ * #??????? | | #[##???????????# ### # "T" #??????? | | # #????????????# ####+##########??????? | | # #????????????# # #?????????????? | | # #????????????# # T #?????????????? | | # ############## # #?????????????? | | # + !!#?????????????? | | ########## # ! ! #?????????????? | | ?????????# """ # #?????????????? | | ?????????# """ ##+#####?????????????? | | ?????????# """ ??????????????????? | | ?????????# #?????????????????? | | ???????? ?????????????????? | | ????????## ##+#####????????????????? | | ????????? #???????????????????????? | | ????????? +???????????????????????? | | ???????? ####???????????????????????? | | ???????? ???????????????????????????? | | ???????? ???????????????????????????? | | ???????? ???????????????????????????? | | ????????## ???????????????????????????? | | ?????????? ???????????????????????????? | | ?????????? ???????????????????????????? | | ??????????????????????????????????????? | | ??????????????????????????????????????? | +----------------------------------------------------+ Best States ------------- Heat Dissipation 31 Energy Generation 10 Energy Capacity 250 Matter Stores 115 Matter Capacity 300 Sight Range 16 Robot Scan Range 14 Terrain Scan Density 10 Evasion (%) 63 Item Schematics ----------------- None Robot Schematics ------------------ None Fabricated ------------ Nothing Repaired ---------- Nothing Studied --------- None Alien Tech Used ----------------- None Achievements -------------- Cya! Challenges ------------ None Game ------ Seed DirtyCarbideReplica Manual? 0 Play Time 00:20:03 Cumulative 9.7 hours Start 2025.11.10 @ 17:54:25 End 2025.11.10 @ 18:11:07 Sessions 1 Manual Loads 0 Difficulty Rogue Special Mode None Game No. 18 Rogue 13 Adventurer 5 Explorer 0 Win Type - Total 0 Types 0/0/0/0/0/0/0/0/0/0 Lore% 7 Gallery% 12 Achievement% 10 Wizard Run 0 Options --------- Layout 0 ASCII 1 Keyboard 0 Movement Mouse Keybinds 0 Fullscreen 1 Font 18/SmallcapsGlow Map View 76x50 Zoom Use 0% Tactical HUD 1 Map Filters NONE Filters NONE Steam 1 RUN: a5456a2c-8476-4e61-81ad-07ce1ace93dd